{"text_format":"1","workbook":"xlsx","n_sheets":2,"sheets":["RIM Drinking Water","List_SWCD"],"not_rendered":{"charts":0,"images":2,"macros":1,"external_links":1,"defined_names":4,"comments":0,"pivot_tables":0},"unopened":[],"bounds":{"document_bytes":16777216,"sheet_cells":100000,"rows_first":2000,"rows_last":500,"rows_between":2000,"halvings":0,"cell_chars":16384,"cell_head_chars":4096},"cells_cut":0,"cells_raw":0,"read":"whole","date_system":"1900"}

{"sheet":"RIM Drinking Water","index":0,"n_rows":62,"n_cols":40,"rows_kept":62,"cut":false,"hidden":false,"merged":[[13,12,13,14],[1,1,1,6],[2,1,2,15],[3,1,3,15],[4,4,4,14],[5,5,5,8],[5,9,5,13],[6,5,6,8],[6,9,6,13],[7,13,7,14],[22,5,22,11],[23,5,23,11],[24,5,24,11],[36,3,36,11],[21,3,21,12],[27,3,27,11],[33,3,34,10],[73,9,73,11],[70,0,70,3],[70,12,70,14],[48,8,48,14],[49,8,50,11],[51,8,51,11]]}
[]
[null,null,null,null,null,null,null,null,null,null,null,null,null,null,null,"Sheet 1 of 1"]
[null,"RIM DRINKING WATER"]
[null," ENVIRONMENTAL BENEFITS SCORING SHEET"]
[]
[null,null,null,null,null,"Landowner Name:",null,null,null,"County/SWCD Office:"]
[]
[]
[]
[null,null,null,null,null,null,null,null,null,null,null,null,null,"Total Score  ",{"$f":"IF(O13=\"Error\",\"Error\",IF(O17=\"Error\",\"Error\",IF(O22=\"Error\",\"Error\",IF(O37=\"Error\",\"Error\",IF(O41=\"Error\",\"Error\",IF(O47=\"Error\",\"Error\",IF(O28=\"Error\",\"Error\",(O13+O17+O22+O28+O37+O41+O47))))))))","v":0}]
[]
[]
[null,null,null,null,null,null,null,null,null,null,null,null,null,"Score  ",{"$f":"IF(W16>1,\"Error\",X16)","v":0},null,null,null,null,null,null,null,"True/false","Score"]
[null,null,null,null,null,null,null,null,null,null,null,null,null,null,null,null,null,null,null,null,null,"a",null,{"$f":"IF(W14=TRUE,5,0)","v":0}]
[null,null,null,null,null,null,null,null,null,null,null,null,null,null,null,null,null,null,null,null,null,"b",null,{"$f":"IF(W15=TRUE,0,0)","v":0}]
[null,null,null,null,null,null,null,null,null,null,null,null,null,null,null,null,null,null,null,null,null,"Count True",{"$f":"COUNTIF(W14:W15, TRUE)","v":0},{"$f":"SUM(X14:X15)","v":0},"Score Sum"]
[null,null,null,null,null,null,null,null,null,null,null,null,null,"Score  ",{"$f":"IF(W21>1,\"Error\",X21)","v":0}]
[]
[null,null,null,null,null,null,null,null,null,null,null,null,null,null,null,null,null,null,null,null,null,"a",null,{"$f":"IF(W19=TRUE,20,0)","v":0}]
[null,null,null,null,null,null,null,null,null,null,null,null,null,null,null,null,null,null,null,null,null,"b",null,{"$f":"IF(W20=TRUE,0,0)","v":0}]
[null,null,null,null,null,null,null,null,null,null,null,null,null,null,null,null,null,null,null,null,null,"Count True",{"$f":"COUNTIF(W19:W20, TRUE)","v":0},{"$f":"SUM(X19:X20)","v":0},"Score Sum"]
[null,null,null,null,null,null,null,null,null,null,null,null,null,"Score  ",{"$f":"IF(W27>1,\"Error\",X27)","v":0}]
[]
[null,null,null,null,null,null,null,null,null,null,null,null,null,null,null,null,null,null," ",null,null,"a",null,{"$f":"IF(W24=TRUE,20,0)","v":0}]
[null,null,null,null,null,null,null,null,null,null,null,null,null,null,null,null,null,null,null,null,null,"b",null,{"$f":"IF(W25=TRUE,15,0)","v":0}]
[null,null,null,null,null,null,null,null,null,null,null,null,null,null,null,null,null,null,null,null,null,"c",null,{"$f":"IF(W26=TRUE,0,0)","v":0}]
[null,null,null,null,null,null,null,null,null,null,null,null,null,null,null,null,null,null,null,null,null,"Count True",{"$f":"COUNTIF(W24:W26, TRUE)","v":0},{"$f":"SUM(X24:X26)","v":0},"Score Sum"]
[null,null,null,null,null,null,null,null,null,null,null,null,null,"Score  ",{"$f":"IF($W$33>1,\"Error\",$X$33)","v":0}]
[]
[]
[null,null,null,null,null,null,null,null,null,null,null,null,null,null,null,null,null,null,null,null,null,"a",null,{"$f":"IF(W31=TRUE,10,0)","v":0}]
[null,null,null,null,null,null,null,null,null,null,null,null,null,null,null,null,null,null,null,null,null,"b",null,{"$f":"IF(W32=TRUE,5,0)","v":0}]
[null,null,null,null,null,null,null,null,null,null,null,null,null,null,null,null,null,null,null,null,null,"Count True",{"$f":"COUNTIF(W31:W32, TRUE)","v":0},{"$f":"SUM(X31:X32)","v":0},"Score Sum"]
[]
[]
[]
[null,null,null,null,null,null,null,null,null,null,null,null,null,"Score  ",{"$f":"IF(W40>1,\"Error\",X40)","v":0},null,null,null,null,null,null,null,"True/false","Score"]
[null,null,null,null,null,null,null,null,null,null,null,null,null,null,null,null,null,null,null,null,null,"a",null,{"$f":"IF(W38=TRUE,10,0)","v":0}]
[null,null,null,null,null,null,null,null,null,null,null,null,null,null,null,null,null,null,null,null,null,"b",null,{"$f":"IF(W39=TRUE,0,0)","v":0}]
[null,null,null,null,null,null,null,null,null,null,null,null,null,null,null,null,null,null,null,null,null,"Count True",{"$f":"COUNTIF(W38:W39, TRUE)","v":0},{"$f":"SUM(X38:X39)","v":0},"Score Sum"]
[null,null,null,null,null,null,null,null,null,null,null,null,null,"Score  ",{"$f":"IF(W46>1,\"Error\",X46)","v":0}]
[null,null,null,null,null,null,null,null,null,null,null,null,null,null,null,null,null,null,null,null,null,"a",null,{"$f":"IF(W42=TRUE,20,0)","v":0}]
[null,null,null,null,null,null,null,null,null,null,null,null,null,null,null,null,null,null,null,null,null,"b",null,{"$f":"IF(W43=TRUE,10,0)","v":0}]
[null,null,null,null,null,null,null,null,null,null,null,null,null,null,null,null,null,null,null,null,null,"c",null,{"$f":"IF(W44=TRUE,5,0)","v":0}]
[null,null,null,null,null,null,null,null,null,null,null,null,null,null,null,null,null,null,null,null,null,"d",null,{"$f":"IF(W45=TRUE,0,0)","v":0}]
[null,null,null,null,null,null,null,null,null,null,null,null,null,null,null,null,null,null,null,null,null,"Count True",{"$f":"COUNTIF(W42:W45, TRUE)","v":0},{"$f":"SUM(X42:X45)","v":0},"Score Sum"]
[null,null,null,null,null,null,null,null,null,null,null,null,null,"Score  ",{"$f":"IF(W50>1,\"Error\",X50)","v":0}]
[null,null,null,null,null,null,null,null,null,null,null,null,null,null,null,null,null,null,null,null,null,"a",null,{"$f":"IF(W48=TRUE,15,0)","v":0}]
[null,null,null,null,null,null,null,null,"BWSR Use Only",null,null,null,null,null,null,null,null,null,null,null,null,"b",null,{"$f":"IF(W49=TRUE,10,0)","v":0}]
[null,null,null,null,null,null,null,null,null,null,null,null,null,null,null,null,null,null,null,null,null,"Count True",{"$f":"COUNTIF(W48:W49, TRUE)","v":0},{"$f":"SUM(X48:X49)","v":0},"Score Sum"]
[null,null,null,null,null,null,null,null,null,null,null,null,null,null,"/100"]
[null,null,null,null,null,null,null,null,"Program Manager Approval",null,null,null,null,"Score"]
[]
[]
[]
[]
[]
[]
[]
[]
[]
[null,null,null,null,null,null,null,null,null,null,null,null,null,null,null,null,null,null,null,null,null,null,null,null,null,null,null,null,null,null,null,null,null,null,null,{"$f":"AF61","v":0},null,{"$f":"AH61","v":0},{"$f":"SUM(X62:AL62)","v":0},{"$f":"IF(AM62>10,10,AM62)","v":0}]

{"sheet":"List_SWCD","index":1,"n_rows":92,"n_cols":2,"rows_kept":92,"cut":false,"hidden":true,"merged":[]}
["SWCD_CODE","SWCD_DESC"]
["01","Aitkin"]
["02","Anoka"]
["03","Becker"]
["04","Beltrami"]
["05","Benton"]
["06","Big Stone"]
["07","Blue Earth"]
["08","Brown"]
["09","Carlton"]
["10","Carver"]
["11","Cass"]
["12","Chippewa"]
["13","Chisago"]
["14","Clay"]
["15","Clearwater"]
["16","Cook"]
["17","Cottonwood"]
["18","Crow Wing"]
["19","Dakota"]
["20","Dodge"]
["21","Douglas"]
["22","Faribault"]
["23","Fillmore"]
["24","Freeborn"]
["25","Goodhue"]
["26","Grant"]
["27","Hennepin"]
["28","Root River"]
["29","Hubbard"]
["30","Isanti"]
["31","Itasca"]
["32","Jackson"]
["33","Kanabec"]
["34","Kandiyohi"]
["35","Kittson"]
["36","Koochiching"]
["37","Lac Qui Parle"]
["38","Lake"]
["39","Lake of the Woods"]
["40","Le Sueur"]
["41","Lincoln"]
["42","Lyon"]
["43","McLeod"]
["44","Mahnomen"]
["45","Marshall"]
["45MB","Marshall Beltrami"]
["46","Martin"]
["47","Meeker"]
["48","Mille Lacs"]
["49","Morrison"]
["50","Mower"]
["51","Murray"]
["52","Nicollet"]
["53","Nobles"]
["54","Norman"]
["55","Olmsted"]
["56EOT","East Ottertail"]
["56WOT","West Ottertail"]
["57","Pennington"]
["58","Pine"]
["59","Pipestone"]
["60EP","East Polk"]
["60WP","West Polk"]
["61","Pope"]
["62","Ramsey"]
["63","Red Lake"]
["64","Redwood"]
["65","Renville"]
["66","Rice"]
["67","Rock"]
["68","Roseau"]
["69NSL","North St. Louis"]
["69SSL","South St. Louis"]
["70","Scott"]
["71","Sherburne"]
["72","Sibley"]
["73","Stearns"]
["74","Steele"]
["75","Stevens"]
["76","Swift"]
["77","Todd"]
["78","Traverse"]
["79","Wabasha"]
["80","Wadena"]
["81","Waseca"]
["82","Washington"]
["83","Watonwan"]
["84","Wilkin"]
["85","Winona"]
["86","Wright"]
["87","Yellow Medicine"]